lending/lending_fUSD_20250429
["ID","MTS","AMOUNT","RATE_DAILY","PERIOD"]
[359281961,1745891463047,-470.0,0.00028218,2]
[359281962,1745891463058,-874.35,0.00028218,2]
[359281963,1745891463068,-470.0,0.00028218,2]
[359281964,1745891463082,-4589.67,0.00028218,2]
[359281965,1745891463092,-470.0,0.00028218,2]
[359281966,1745891463102,-689.95,0.00028218,2]
[359281967,1745891463112,-470.0,0.00028218,2]
[359281968,1745891463121,-470.0,0.00028218,2]
[359281969,1745891463131,-1187.94,0.00028218,2]
[359281970,1745891463140,-685.45,0.00028218,2]
[359281971,1745891463150,-475.42,0.00028218,2]
[359281972,1745891463160,-3701.31,0.00028218,2]
[359281973,1745891463169,-1069.98,0.00028218,2]
[359281974,1745891463179,-524.14,0.00028218,2]
[359281975,1745891463188,-652.76,0.00028218,2]
[359281976,1745891463198,-1325.98,0.00028218,2]
[359281977,1745891463207,-470.0,0.00028218,2]
[359281978,1745891463216,-1133.42,0.00028218,2]
[359281979,1745891463226,-470.0,0.00028218,2]
[359281980,1745891463236,-470.0,0.00028218,2]
[359281981,1745891463245,-470.0,0.00028218,2]
[359281982,1745891463255,-1236.99,0.00028218,2]
[359281983,1745891463264,-151.0,0.00028218,7]
[359281984,1745891463274,-1544.01,0.00028218,2]
[359281985,1745891463283,-151.0,0.00028218,7]
[359281986,1745891463293,-592.57,0.00028218,2]
[359281987,1745891463303,-2592.3,0.00028218,2]
[359281988,1745891463313,-3608.48,0.00028218,2]
[359281989,1745891463327,-470.0,0.00028218,2]
[359281990,1745891463337,-470.0,0.00028218,2]
[359281991,1745891463347,-2078.86,0.00028218,2]
[359281992,1745891463358,-794.88,0.00028218,2]
[359281993,1745891463371,-470.0,0.00028218,2]
[359281994,1745891463381,-1330.27,0.00028218,2]
[359281995,1745891463391,-636.72,0.00028218,2]
[359281996,1745891463401,-603.25,0.00028218,2]
[359281997,1745891463411,-511.97,0.00028218,2]
[359281998,1745891463420,-470.0,0.00028218,2]
[359281999,1745891463430,-470.0,0.00028218,2]
[359282000,1745891463440,-585.71547598,0.00028218,2]
[359282001,1745891463450,-470.0,0.00028218,2]
[359282002,1745891463460,-958.25,0.00028218,2]
[359282003,1745891463470,-152.476605,0.00028218,7]
[359282004,1745891463481,-152.476605,0.00028218,7]
[359282005,1745891463491,-735.84,0.00028219,2]
[359282006,1745891463501,-470.0,0.00028219,2]
[359282007,1745891463511,-470.0,0.00028219,2]
[359282008,1745891463521,-1000.0,0.00028219,2]
[359282009,1745891463531,-513.1,0.00028219,2]
[359282010,1745891463541,-600.09575515,0.00028219,2]
[359282011,1745891463551,-470.0,0.00028219,2]
[359282012,1745891463560,-789.47,0.00028219,2]
[359282013,1745891463570,-470.0,0.00028219,2]
[359282014,1745891463582,-521.81,0.00028219,2]
[359282015,1745891463591,-470.0,0.00028219,2]
[359282016,1745891463601,-472.95,0.00028219,2]
[359282017,1745891463611,-470.0,0.00028219,2]
[359282018,1745891463621,-470.0,0.00028219,2]
[359282019,1745891463630,-504.73,0.00028219,2]
[359282020,1745891463640,-470.0,0.00028219,2]
[359282021,1745891463649,-470.0,0.00028219,2]
[359282022,1745891463659,-470.0,0.00028219,2]
[359282023,1745891463668,-470.0,0.00028219,2]
[359282024,1745891463678,-470.0,0.00028219,2]
[359282025,1745891463687,-470.0,0.00028219,2]
[359282026,1745891463697,-470.0,0.00028219,2]
[359282027,1745891463707,-470.0,0.00028219,2]
[359282028,1745891463716,-470.0,0.00028219,2]
[359282029,1745891463726,-470.0,0.00028219,2]
[359282030,1745891463735,-470.0,0.00028219,2]
[359282031,1745891463746,-470.0,0.00028219,2]
[359282032,1745891463758,-470.0,0.00028219,2]
[359282033,1745891463771,-470.0,0.00028219,2]
[359282034,1745891463781,-470.0,0.00028219,2]
[359282035,1745891463791,-470.0,0.00028219,2]
[359282036,1745891463802,-470.0,0.00028219,2]
[359282037,1745891463812,-470.0,0.00028219,2]
[359282038,1745891463822,-470.0,0.00028219,2]
[359282039,1745891463832,-470.0,0.00028219,2]
[359282040,1745891463842,-470.0,0.00028219,2]
[359282041,1745891463973,-470.0,0.00028219,2]
[359282042,1745891463996,-470.0,0.00028219,2]
[359282043,1745891464006,-470.0,0.00028219,2]
[359282044,1745891464015,-470.0,0.00028219,2]
[359282045,1745891464025,-470.0,0.00028219,2]
[359282046,1745891464035,-470.0,0.00028219,2]
[359282047,1745891464045,-470.0,0.00028219,2]
[359282048,1745891464054,-521.34,0.00028219,2]
[359282049,1745891464065,-470.0,0.00028219,2]
[359282050,1745891464076,-470.0,0.00028219,2]
[359282051,1745891464086,-470.0,0.00028219,2]
[359282052,1745891464095,-470.0,0.00028219,2]
[359282053,1745891464105,-470.0,0.00028219,2]
[359282054,1745891464115,-470.0,0.00028219,2]
[359282055,1745891464125,-470.0,0.00028219,2]
[359282056,1745891464135,-470.0,0.00028219,2]
[359282057,1745891464145,-470.0,0.00028219,2]
[359282058,1745891464156,-484.3,0.00028219,2]
[359282059,1745891464166,-470.0,0.00028219,2]
[359282060,1745891464176,-470.0,0.00028219,2]
[359282061,1745891464187,-470.0,0.00028219,2]
[359282062,1745891464196,-470.0,0.00028219,2]
[359282063,1745891464207,-470.0,0.00028219,2]
[359282064,1745891464217,-571.14,0.00028219,2]
[359282065,1745891464227,-470.0,0.00028219,2]
[359282066,1745891464237,-545.09,0.00028219,2]
[359282067,1745891464246,-470.0,0.00028219,2]
[359282068,1745891464256,-470.0,0.00028219,2]
[359282069,1745891464265,-470.0,0.00028219,2]
[359282070,1745891464275,-661.1,0.00028219,2]
[359282071,1745891464285,-470.0,0.00028219,2]
[359282072,1745891464294,-1617.95,0.00028219,2]
[359282073,1745891464303,-470.0,0.00028219,2]
[359282074,1745891464312,-470.0,0.00028219,2]
[359282075,1745891464322,-470.0,0.00028219,2]
[359282076,1745891464331,-470.0,0.00028219,2]
[359282077,1745891464341,-518.75,0.00028219,2]
[359282078,1745891464350,-470.0,0.00028219,2]
[359282079,1745891464360,-470.0,0.00028219,2]
[359282080,1745891464370,-470.0,0.00028219,2]
[359282081,1745891464379,-470.0,0.00028219,2]
[359282082,1745891464388,-470.0,0.00028219,2]
[359282083,1745891464397,-470.0,0.00028219,2]
[359282084,1745891464407,-789.9,0.00028219,2]
[359282085,1745891464417,-470.0,0.00028219,2]
[359282086,1745891464427,-470.0,0.00028219,2]
[359282087,1745891464437,-545.10082957,0.00028219,2]
[359282088,1745891464447,-470.0,0.00028219,2]
[359282089,1745891464456,-470.0,0.00028219,2]
[359282090,1745891464466,-419.28734403,0.00028219,2]
[359282091,1745891464475,-845.94,0.00028219,2]
[359282092,1745891464484,-470.0,0.00028219,2]
[359282093,1745891464494,-470.0,0.00028219,2]
[359282094,1745891464504,-493.82,0.00028219,2]
[359282095,1745891464513,-470.0,0.00028219,2]
[359282096,1745891464523,-470.0,0.00028219,2]
[359282097,1745891464533,-470.0,0.00028219,2]
[359282098,1745891464542,-470.0,0.00028219,2]
[359282099,1745891464552,-706.07,0.00028219,2]
[359282100,1745891464561,-575.23,0.00028219,2]
[359282101,1745891464571,-470.0,0.00028219,2]
[359282102,1745891464580,-470.0,0.00028219,2]
[359282103,1745891464591,-470.0,0.00028219,2]
[359282104,1745891464600,-633.13,0.00028219,2]
[359282105,1745891464610,-470.0,0.00028219,2]
[359282106,1745891464620,-470.0,0.00028219,2]
[359282107,1745891464630,-470.0,0.00028219,2]
[359282108,1745891464641,-547.18,0.00028219,2]
[359282109,1745891464651,-470.0,0.00028219,2]
[359282110,1745891464660,-470.0,0.00028219,2]
[359282111,1745891464670,-470.0,0.00028219,2]
[359282112,1745891464679,-470.0,0.00028219,2]
[359282113,1745891464688,-470.0,0.00028219,2]
[359282114,1745891464698,-470.0,0.00028219,2]
[359282115,1745891464707,-470.0,0.00028219,2]
[359282116,1745891464716,-721.02,0.00028219,2]
[359282117,1745891464726,-507.92578813,0.00028219,2]
[359282118,1745891464736,-364.12742217,0.00028219,2]
[359282119,1745891464745,-470.0,0.00028219,2]
[359282120,1745891464755,-470.0,0.00028219,2]
[359282121,1745891464766,-810.22,0.00028219,2]
[359282122,1745891464776,-481.47975243,0.00028219,2]
[359282123,1745891464785,-470.0,0.00028219,2]
[359282124,1745891464794,-608.48,0.00028219,2]
[359282125,1745891464805,-470.0,0.00028219,2]
[359282126,1745891464814,-567.75,0.00028219,2]
[359282127,1745891464823,-470.0,0.00028219,2]
[359282128,1745891464833,-470.0,0.00028219,2]
[359282129,1745891464843,-470.0,0.00028219,2]
[359282130,1745891464852,-470.0,0.00028219,2]
[359282131,1745891464862,-575.6,0.00028219,2]
[359282132,1745891464871,-504.66,0.00028219,2]
[359282133,1745891464880,-470.0,0.00028219,2]
[359282134,1745891464890,-470.0,0.00028219,2]
[359282135,1745891464899,-470.0,0.00028219,2]
[359282136,1745891464908,-669.21,0.00028219,2]
[359282137,1745891464918,-470.0,0.00028219,2]
[359282138,1745891464927,-501.59,0.00028219,2]
[359282139,1745891464938,-470.0,0.00028219,2]
[359282140,1745891464947,-470.0,0.00028219,2]
[359282141,1745891464958,-158.99518446,0.00028219,2]
[359282142,1745891464968,-575.94,0.00028219,2]
[359282143,1745891464977,-470.0,0.00028219,2]
[359282144,1745891464987,-470.0,0.00028219,2]
[359282145,1745891464997,-470.0,0.00028219,2]
[359282146,1745891465006,-694.09,0.00028219,2]
[359282147,1745891465016,-172.427386,0.00028219,7]
[359282148,1745891465026,-470.0,0.00028219,2]
[359282149,1745891465035,-476.74,0.00028219,2]
[359282150,1745891465045,-470.0,0.00028219,2]
[359282151,1745891465055,-470.0,0.00028219,2]
[359282152,1745891465064,-470.0,0.00028219,2]
[359282153,1745891465076,-698.7,0.00028219,2]
[359282154,1745891465087,-470.0,0.00028219,2]
[359282155,1745891465096,-470.0,0.00028219,2]
[359282156,1745891465106,-470.0,0.00028219,2]
[359282157,1745891465116,-470.0,0.00028219,2]
[359282158,1745891465125,-470.0,0.00028219,2]
[359282159,1745891465135,-470.0,0.00028219,2]
[359282160,1745891465145,-470.0,0.00028219,2]
[359282161,1745891465154,-470.0,0.00028219,2]
[359282162,1745891465164,-470.0,0.00028219,2]
[359282163,1745891465173,-470.0,0.00028219,2]
[359282164,1745891465182,-1073.63,0.00028219,2]
[359282165,1745891465192,-475.05582799,0.00028219,2]
[359282166,1745891465201,-470.0,0.00028219,2]
[359282167,1745891465211,-470.0,0.00028219,2]
[359282168,1745891465221,-470.0,0.00028219,2]
[359282169,1745891465230,-470.0,0.00028219,2]
[359282170,1745891465239,-678.29,0.00028219,2]
[359282171,1745891465249,-470.0,0.00028219,2]
[359282172,1745891465258,-470.0,0.00028219,2]
[359282173,1745891465267,-470.0,0.00028219,2]
[359282174,1745891465276,-470.0,0.00028219,2]
[359282175,1745891465286,-550.22235076,0.00028219,2]
[359282176,1745891465295,-470.0,0.00028219,2]
[359282177,1745891465304,-470.0,0.00028219,2]
[359282178,1745891465313,-470.0,0.00028219,2]
[359282179,1745891465323,-470.0,0.00028219,2]
[359282180,1745891465332,-214.76402117,0.00028219,2]
[359282181,1745891465341,-470.0,0.00028219,2]
[359282182,1745891465350,-470.0,0.00028219,2]
[359282183,1745891465359,-470.0,0.00028219,2]
[359282184,1745891465369,-470.0,0.00028219,2]
[359282185,1745891465378,-470.0,0.00028219,2]
[359282186,1745891465388,-470.0,0.00028219,2]
[359282187,1745891465398,-470.0,0.00028219,2]
[359282188,1745891465408,-470.92,0.00028219,2]
[359282189,1745891465418,-470.0,0.00028219,2]
[359282190,1745891465427,-264.99100119,0.00028219,2]
[359282191,1745891465437,-470.0,0.00028219,2]
[359282192,1745891465448,-470.0,0.00028219,2]
[359282193,1745891465457,-470.0,0.00028219,2]
[359282194,1745891465467,-470.0,0.00028219,2]
[359282195,1745891465476,-470.0,0.00028219,2]
[359282196,1745891465488,-695.67,0.00028219,2]
[359282197,1745891465497,-470.0,0.00028219,2]
[359282198,1745891465506,-470.0,0.00028219,2]
[359282199,1745891465516,-470.0,0.00028219,2]
[359282200,1745891465527,-428.28283277,0.00028219,2]
[359282201,1745891465539,-470.0,0.00028219,2]
[359282202,1745891465548,-470.0,0.00028219,2]
[359282203,1745891465558,-470.0,0.00028219,2]
[359282204,1745891465567,-470.0,0.00028219,2]
[359282205,1745891465577,-470.0,0.00028219,2]
[359282206,1745891465587,-470.0,0.00028219,2]
[359282207,1745891465596,-512.93,0.00028219,2]
[359282208,1745891465607,-549.33,0.00028219,2]
[359282209,1745891465618,-470.0,0.00028219,2]
[359282210,1745891465627,-470.0,0.00028219,2]
[359282211,1745891465636,-470.0,0.00028219,2]
[359282212,1745891465647,-470.0,0.00028219,2]
[359282213,1745891465658,-470.0,0.00028219,2]
[359282214,1745891465668,-470.0,0.00028219,2]
[359282215,1745891465678,-470.0,0.00028219,2]
[359282216,1745891465687,-489.74,0.00028219,2]
[359282217,1745891465697,-470.0,0.00028219,2]
[359282218,1745891465707,-474.75565821,0.00028219,2]
[359282219,1745891465717,-470.0,0.00028219,2]
[359282220,1745891465727,-926.6,0.00028219,2]
[359282221,1745891465736,-158.06644379,0.00028219,2]
[359282222,1745891465745,-470.0,0.00028219,2]
[359282223,1745891465755,-470.0,0.00028219,2]
[359282224,1745891465766,-55510.47,0.00028219,2]
[359282225,1745891465779,-470.0,0.00028219,2]
[359282226,1745891465788,-470.0,0.00028219,2]
[359282227,1745891465798,-470.0,0.00028219,2]
[359282228,1745891465810,-470.0,0.00028219,2]
[359282229,1745891465820,-470.0,0.00028219,2]
[359282230,1745891465830,-470.0,0.00028219,2]
[359282231,1745891465841,-470.0,0.00028219,2]
[359282232,1745891465851,-310.06925309,0.00028219,2]
[359282233,1745891465860,-470.0,0.00028219,2]
[359282234,1745891465869,-470.0,0.00028219,2]
[359282235,1745891465879,-1415.32,0.00028219,2]
[359282236,1745891465888,-470.0,0.00028219,2]
[359282237,1745891465898,-470.0,0.00028219,2]
[359282238,1745891465907,-470.0,0.00028219,2]
[359282239,1745891465917,-470.0,0.00028219,2]
[359282240,1745891465927,-470.0,0.00028219,2]
[359282241,1745891465936,-618.86,0.00028219,2]
[359282242,1745891465945,-4571.21,0.00028219,2]
[359282243,1745891465956,-470.0,0.00028219,2]
[359282244,1745891465965,-470.0,0.00028219,2]
[359282245,1745891465975,-470.0,0.00028219,2]
[359282246,1745891465984,-1013.11,0.00028219,2]
[359282247,1745891465994,-250.0,0.00028219,2]
[359282248,1745891466129,-992.65,0.00028219,2]
[359282249,1745891466140,-470.0,0.00028219,2]
[359282250,1745891466149,-586.6,0.00028219,2]
[359282251,1745891466159,-1684.71,0.00028219,2]
[359282252,1745891466168,-470.0,0.00028219,2]
[359282253,1745891466177,-151.0,0.00028219,7]
[359282254,1745891466186,-151.0,0.00028219,7]
[359282255,1745891466196,-470.0,0.00028219,2]
[359282256,1745891466205,-470.0,0.00028219,2]
[359282257,1745891466214,-470.0,0.00028219,2]
[359282258,1745891466223,-470.0,0.00028219,2]
[359282259,1745891466233,-14565.27,0.00028219,2]
[359282260,1745891466242,-470.0,0.00028219,2]
[359282261,1745891466251,-416.95132453,0.00028219,2]
[359282262,1745891466261,-561.75712741,0.00028219,2]
[359282263,1745891466270,-470.0,0.00028219,2]
[359282264,1745891466280,-724.463176,0.00028219,2]
[359282265,1745891466289,-470.0,0.00028219,2]
[359282266,1745891466299,-470.0,0.00028219,2]
[359282267,1745891466308,-470.0,0.00028219,2]
[359282268,1745891466317,-470.0,0.00028219,2]
[359282269,1745891466327,-470.0,0.00028219,2]
[359282270,1745891466336,-470.0,0.00028219,2]
[359282271,1745891466345,-470.0,0.00028219,2]
[359282272,1745891466354,-470.0,0.00028219,2]
[359282273,1745891466363,-470.0,0.00028219,2]
[359282274,1745891466373,-499.1,0.00028219,2]
[359282275,1745891466382,-746.52,0.00028219,2]
[359282276,1745891466392,-470.0,0.00028219,2]
[359282277,1745891466401,-470.0,0.00028219,2]
[359282278,1745891466416,-560.29,0.00028219,2]
[359282279,1745891466425,-206.282,0.00028219,7]
[359282280,1745891466435,-151.0,0.00028219,7]
[359282281,1745891466444,-470.0,0.00028219,2]
[359282282,1745891466453,-504.68,0.00028219,2]
[359282283,1745891466462,-470.0,0.00028219,2]
[359282284,1745891466471,-470.0,0.00028219,2]
[359282285,1745891466481,-558.42,0.00028219,2]
[359282286,1745891466490,-470.0,0.00028219,2]
[359282287,1745891466499,-470.0,0.00028219,2]
[359282288,1745891466508,-470.0,0.00028219,2]
[359282289,1745891466517,-5545.091631,0.00028219,2]
[359282290,1745891466527,-470.0,0.00028219,2]
[359282291,1745891466536,-470.0,0.00028219,2]
[359282292,1745891466545,-470.0,0.00028219,2]
[359282293,1745891466555,-1047.69,0.00028219,2]
[359282294,1745891466564,-206.282,0.00028219,7]
[359282295,1745891466574,-300.0,0.00028219,2]
[359282296,1745891466584,-470.0,0.00028219,2]
[359282297,1745891466593,-470.0,0.00028219,2]
[359282298,1745891466603,-295.18219011,0.00028219,2]
[359282299,1745891466612,-573.29730868,0.00028219,2]
[359282300,1745891466622,-470.0,0.00028219,2]
[359282301,1745891466631,-470.0,0.00028219,2]
[359282302,1745891466640,-472.85,0.00028219,2]
[359282303,1745891466650,-470.0,0.00028219,2]
[359282304,1745891466660,-470.0,0.00028219,2]
[359282305,1745891466669,-470.0,0.00028219,2]
[359282306,1745891466679,-1132.811667,0.00028219,2]
[359282307,1745891466688,-470.0,0.00028219,2]
[359282308,1745891466697,-2265.36,0.00028219,2]
[359282309,1745891466707,-470.0,0.00028219,2]
[359282310,1745891466716,-470.0,0.00028219,2]
[359282311,1745891466725,-483.38,0.00028219,2]
[359282312,1745891466735,-1175.89,0.00028219,2]
[359282313,1745891466744,-470.0,0.00028219,2]
[359282314,1745891466753,-470.0,0.00028219,2]
[359282315,1745891466762,-866.46,0.00028219,2]
[359282316,1745891466774,-588.59,0.00028219,2]
[359282317,1745891466784,-190.20585007,0.00028219,2]
[359282318,1745891466793,-470.0,0.00028219,2]
[359282319,1745891466803,-470.0,0.00028219,2]
[359282320,1745891466813,-699.58,0.00028219,2]
[359282321,1745891466823,-470.0,0.00028219,2]
[359282322,1745891466832,-470.0,0.00028219,2]
[359282323,1745891466842,-470.0,0.00028219,2]
[359282324,1745891466852,-470.0,0.00028219,2]
[359282325,1745891466862,-470.0,0.00028219,2]
[359282326,1745891466872,-470.0,0.00028219,2]
[359282327,1745891466881,-540.83,0.00028219,2]
[359282328,1745891466891,-679.4,0.00028219,2]
[359282329,1745891466900,-470.0,0.00028219,2]
[359282330,1745891466910,-543.9739278,0.00028219,2]
[359282331,1745891466919,-453.71047882,0.00028219,2]
[359282332,1745891466929,-477.45,0.00028219,2]
[359282333,1745891466939,-470.0,0.00028219,2]
[359282334,1745891466949,-470.0,0.00028219,2]
[359282335,1745891466958,-520.07,0.00028219,2]
[359282336,1745891466967,-866.58,0.00028219,2]
[359282337,1745891466977,-742.91,0.00028219,2]
[359282338,1745891466986,-470.0,0.00028219,2]
[359282339,1745891466996,-470.0,0.00028219,2]
[359282340,1745891467006,-470.0,0.00028219,2]
[359282341,1745891467016,-470.0,0.00028219,2]
[359282342,1745891467026,-470.0,0.00028219,2]
[359282343,1745891467036,-470.0,0.00028219,2]
[359282344,1745891467056,-470.0,0.00028219,2]
[359282345,1745891467072,-470.0,0.00028219,2]
[359282346,1745891467092,-470.0,0.00028219,2]
[359282347,1745891467110,-470.0,0.00028219,2]
[359282348,1745891467125,-470.0,0.00028219,2]
[359282349,1745891467143,-250.98377082,0.00028219,2]
[359282350,1745891467163,-470.0,0.00028219,2]
[359282351,1745891467180,-151.0,0.00028219,7]
[359282352,1745891467199,-470.0,0.00028219,2]
[359282353,1745891467217,-470.0,0.00028219,2]
[359282354,1745891467235,-470.0,0.00028219,2]
[359282355,1745891467250,-673.27,0.00028219,2]
[359282356,1745891467266,-470.82510216,0.00028219,2]
[359282357,1745891467282,-470.0,0.00028219,2]
[359282358,1745891467297,-1093.29,0.00028219,2]
[359282359,1745891467314,-470.0,0.00028219,2]
[359282360,1745891467329,-488.64,0.00028219,2]
[359282361,1745891467344,-470.0,0.00028219,2]
[359282362,1745891467358,-470.0,0.00028219,2]
[359282363,1745891467373,-941.22,0.00028219,2]
[359282364,1745891467389,-522.04,0.00028219,2]
[359282365,1745891467403,-470.0,0.00028219,2]
[359282366,1745891467419,-470.0,0.00028219,2]
[359282367,1745891467434,-470.0,0.00028219,2]
[359282368,1745891467451,-470.0,0.00028219,2]
[359282369,1745891467466,-529.28,0.00028219,2]
[359282370,1745891467481,-470.0,0.00028219,2]
[359282371,1745891467498,-470.0,0.00028219,2]
[359282372,1745891467512,-1099.06,0.00028219,2]
[359282373,1745891467528,-470.0,0.00028219,2]
[359282374,1745891467542,-1006.54,0.00028219,2]
[359282375,1745891467560,-780.67,0.00028219,2]
[359282376,1745891467575,-470.0,0.00028219,2]
[359282377,1745891467590,-470.0,0.00028219,2]
[359282378,1745891467607,-470.0,0.00028219,2]
[359282379,1745891467623,-470.0,0.00028219,2]
[359282380,1745891467638,-201.79386331,0.00028219,2]
[359282381,1745891467653,-470.0,0.00028219,2]
[359282382,1745891467667,-470.0,0.00028219,2]
[359282383,1745891467682,-763.46,0.00028219,2]
[359282384,1745891467696,-503.03,0.00028219,2]
[359282385,1745891467711,-658.47,0.00028219,2]
[359282386,1745891467728,-470.0,0.00028219,2]
[359282387,1745891467743,-470.0,0.00028219,2]
[359282388,1745891467759,-470.0,0.00028219,2]
[359282389,1745891467777,-470.0,0.00028219,2]
[359282390,1745891467792,-500.0,0.00028219,2]
[359282391,1745891467807,-428.64450674,0.00028219,2]
[359282392,1745891467823,-349.17821084,0.00028219,2]
[359282393,1745891467836,-470.0,0.00028219,2]
[359282394,1745891467851,-470.0,0.00028219,2]
[359282395,1745891467866,-470.0,0.00028219,2]
[359282396,1745891467881,-509.6,0.00028219,2]
[359282397,1745891467895,-470.0,0.00028219,2]
[359282398,1745891467910,-470.0,0.00028219,2]
[359282399,1745891467924,-470.0,0.00028219,2]
[359282400,1745891467939,-2398.53,0.00028219,2]
[359282401,1745891467953,-1318.81,0.00028219,2]
[359282402,1745891467967,-470.0,0.00028219,2]
[359282403,1745891467982,-574.52,0.00028219,2]
[359282404,1745891467998,-470.0,0.00028219,2]
[359282405,1745891468012,-561.78,0.00028219,2]
[359282406,1745891468027,-1126.5,0.00028219,2]
[359282407,1745891468041,-687.67,0.00028219,2]
[359282408,1745891468056,-541.16,0.00028219,2]
[359282409,1745891468070,-470.0,0.00028219,2]
[359282410,1745891468085,-1991.96,0.00028219,2]
[359282411,1745891468100,-470.0,0.00028219,2]
[359282412,1745891468114,-470.0,0.00028219,2]
[359282413,1745891468128,-470.0,0.00028219,2]
[359282414,1745891468142,-470.0,0.00028219,2]
[359282415,1745891468156,-515.09,0.00028219,2]
[359282416,1745891468172,-264.98884095,0.00028219,2]
[359282417,1745891468187,-470.0,0.00028219,2]
[359282418,1745891468201,-562.4549391,0.00028219,2]
[359282419,1745891468217,-470.0,0.00028219,2]
[359282420,1745891468232,-241.42784223,0.00028219,2]
[359282421,1745891468246,-470.0,0.00028219,2]
[359282422,1745891468261,-470.0,0.00028219,2]
[359282423,1745891468277,-470.0,0.00028219,2]
[359282424,1745891468291,-939.33,0.00028219,2]
[359282425,1745891468306,-151.0,0.00028219,7]
[359282426,1745891468317,-498.44,0.00028219,2]
[359282427,1745891468327,-416.91149257,0.00028219,2]
[359282428,1745891468336,-530.34,0.00028219,2]
[359282429,1745891468346,-151.0,0.00028219,7]
[359282430,1745891468355,-503.93505354,0.00028219,2]
[359282431,1745891468364,-422.26119446,0.00028219,2]
[359282432,1745891468374,-9495.93,0.00028219,2]
[359282433,1745891468384,-470.0,0.00028219,2]
[359282434,1745891468393,-470.0,0.00028219,2]
[359282435,1745891468402,-470.0,0.00028219,2]
[359282436,1745891468412,-470.0,0.00028219,2]
[359282437,1745891468421,-470.0,0.00028219,2]
[359282438,1745891468671,-499.51,0.00028219,2]
[359282439,1745891468701,-698.61,0.00028219,2]
[359282440,1745891468724,-470.0,0.00028219,2]
[359282441,1745891468733,-470.0,0.00028219,2]
[359282442,1745891468743,-6840.16,0.00028219,2]
[359282443,1745891468752,-470.0,0.00028219,2]
[359282444,1745891468765,-470.0,0.00028219,2]
[359282445,1745891468775,-470.0,0.00028219,2]
[359282446,1745891468784,-470.0,0.00028219,2]
[359282447,1745891468793,-1529.65,0.00028219,2]
[359282448,1745891468803,-470.0,0.00028219,2]
[359282449,1745891468813,-318.00958533,0.00028219,2]
[359282450,1745891468822,-470.0,0.00028219,2]
[359282451,1745891468836,-534.45,0.00028219,2]
[359282452,1745891468846,-470.0,0.00028219,2]
[359282453,1745891468855,-476.44418907,0.00028219,2]
[359282454,1745891468865,-470.0,0.00028219,2]
[359282455,1745891468875,-470.0,0.00028219,2]
[359282456,1745891468885,-470.0,0.00028219,2]
[359282457,1745891468895,-523.02,0.00028219,2]
[359282458,1745891468904,-470.0,0.00028219,2]
[359282459,1745891468913,-470.0,0.00028219,2]
[359282460,1745891468923,-470.0,0.00028219,2]